Cogmind - Beta 12 X4 @@@ ROGUE MODE // 2022.12.20 @ 14:08:54 Player: aperiodic Result: Destroyed by G-47 Trooper with Particle Gun Performance ------------- Evolutions (3) 1500 Regions Visited (12) 2400 Robots Destroyed (213) 1065 Value Destroyed (6647) 6647 Prototype IDs (48) 960 Alien Tech Used (0) 0 Bonus (1544) 1544 TOTAL SCORE: 14116 Bonus ------- High Alert Combat Kills 707 Follower Combat Kills 313 Entered Garrisons 600 Aligned with FarCom 300 Friendly Fire -376 Cogmind --------- Core Integrity 0/700 Matter 229/300 Energy 157/157 System Corruption 5% Temperature Cool (37) Movement Treading (240) Ox1 Location -7/Factory Parts ------- > --- POWER (1) -------- Deuterium-Nuclear Core > --- PROPULSION (3) --- Light Treads Light Treads > --- UTILITY (6) ------ Armored Scrap Engine High-capacity Storage Unit System Shield > --- WEAPON (3) ------- Cycling Kinetic Gauss Construct/C > --- INVENTORY (20) --- Improved Flight Unit Coolant Injector High-capacity Matter Pod (200) Machine Analyzer Improved Medium Armor Plating Improved Medium Armor Plating Medium Reflective Plating Medium Reflective Plating Medium Reflective Plating Insulated Plating Improved Shield Generator Hacking Suite Recalibrator AWS/Autocannon Missile Launcher Peak State ------------ > --- POWER ------------ Deuterium-Nuclear Core > --- PROPULSION ------- Treaded Gravmag-Armored Exoskeleton Wheel Wheel > --- UTILITY ---------- Armored Scrap Engine High-capacity Storage Unit Improved Medium Armor Plating Hacking Suite Hacking Suite > --- WEAPON ----------- AWS/Autocannon > --- INVENTORY -------- Improved Flight Unit Improved Heat Sink High-capacity Matter Pod Machine Analyzer Improved Medium Armor Plating Improved Medium Armor Plating Insulated Plating Authchip [Weapon] Authchip [Weapon] Recalibrator Missile Launcher [Rating: 73] Favorites ----------- Power Light Nuclear Core Engine Ion Engine Power Core Light Nuclear Core Propulsion Wheel Treads Light Treads Wheel Wheel Utility High-capacity Storage Unit Device Seismic Detector Storage High-capacity Storage Unit Hackware Hacking Suite Protection Improved Medium Armor Plating Weapon Scythe Energy Gun Precision Beam Rifle Ballistic Gun Enhanced Autogun Ballistic Cannon Constructs Launcher Missile Launcher Special Weapon Mining Laser Slashing Weapon Scythe Build | -11 -10 -10 -10 -9 -8 -8 -8 -8 -8 -7 -7 -7 ------- Run | Scr Mat Min Exi Min Mat Gar Mat Gar Mat Fac Gar Fac Slots Evolved 6 | . . . . . 4 . . . . 2 . . Power . | . . . . . . . . . . . . . Propulsion 1 | . . . . . 1 . . . . . . . Utility 4 | . . . . . 2 . . . . 2 . . Weapon 1 | . . . . . 1 . . . . . . . Parts Attached 159 | 7 23 3 5 6 21 16 21 14 21 8 9 5 Power 18 | 1 1 1 . 2 2 2 2 . 4 1 2 . Engine 7 | 1 1 . . 2 . . . . 2 . 1 . Core 11 | . . 1 . . 2 2 2 . 2 1 1 . Reactor . | . . . . . . . . . . . . . Propulsion 47 | 2 14 1 2 . 7 1 4 4 5 3 3 1 Treads 23 | . 8 . 2 . . . . 4 5 . 3 1 Leg . | . . . . . . . . . . . . . Wheel 24 | 2 6 1 . . 7 1 4 . . 3 . . Hover . | . . . . . . . . . . . . . Flight . | . . . . . . . . . . . . . Utility 28 | 2 2 . 1 . 5 4 1 1 3 2 3 4 Device 5 | 1 . . . . 1 . . . 1 2 . . Storage 4 | 1 2 . . . 1 . . . . . . . Processor . | . . . . . . . . . . . . . Hackware 7 | . . . . . 2 . . . 1 . 1 3 Protection 12 | . . . 1 . 1 4 1 1 1 . 2 1 Artifact . | . . . . . . . . . . . . . Weapon 66 | 2 6 1 2 4 7 9 14 9 9 2 1 . Energy Gun 4 | . . . . . 1 . 1 . 2 . . . Energy Cannon . | . . . . . . . . . . . . . Ballistic Gun 30 | 2 3 1 2 3 2 4 6 4 3 . . . Ballistic Cannon 3 | . 1 . . . . . . . . 1 1 . Launcher 14 | . 1 . . 1 2 3 2 4 1 . . . Special Weapon 1 | . 1 . . . . . . . . . . . Impact Weapon . | . . . . . . . . . . . . . Slashing Weapon 14 | . . . . . 2 2 5 1 3 1 . . Piercing Weapon . | . . . . . . . . . . . . . Special Melee Weapon . | . . . . . . . . . . . . . Unidentified Prototypes 4 | . . . . . 1 . 2 . 1 . . . Parts Lost 33 | . 2 . . . 1 7 . 4 1 11 5 2 Power 6 | . . . . . 1 1 . 1 . 2 1 . Propulsion 13 | . 1 . . . . 2 . 2 1 3 3 1 Utility 6 | . . . . . . 1 . 1 . 3 . 1 Weapon 8 | . 1 . . . . 3 . . . 3 1 . Highest Loss Streak 7 | . 1 . . . 1 5 . 4 1 7 3 1 To Critical Strikes . | . . . . . . . . . . . . . Average Slot Usage (%) 88 | . 99 100 100 99 96 84 89 85 89 64 71 72 Engine 2 | . 14 1 . 7 1 . . . 2 4 4 3 Core 5 | . . 12 14 6 7 6 9 3 3 . . 1 Treads 10 | . 16 . 12 28 1 . . 16 26 9 11 22 Wheel 14 | . 11 28 16 . 24 23 26 10 . 5 8 . Device 3 | . 14 14 8 . . . . . 1 9 7 7 Storage 9 | . 14 14 14 14 9 9 9 9 9 7 7 7 Hackware 11 | . . . . . 16 18 18 12 10 12 15 17 Protection 6 | . . . 6 14 9 8 8 8 9 2 7 4 Energy Gun 1 | . . . . . . . . . 8 5 . . Ballistic Gun 13 | . 21 27 28 27 17 8 11 13 9 4 3 3 Slashing Weapon 4 | . . . . . 7 8 6 7 8 . . . Naked Turns . | . . . . . . . . . . . . . Heaviest Build 116 | 11 32 32 34 35 59 66 67 71 76 111 116 59 Greatest Support 67 | 26 40 32 40 40 44 38 38 65 67 65 60 60 Greatest Overweight (x) 14 | . 1 1 1 . 1 2 2 2 1 14 5 . Average Overweight (x) . | . . . . . . 1 1 1 . 2 2 . Largest Inventory Capacity 20 | 8 15 15 15 15 20 20 20 20 20 20 20 20 Average Capacity 18 | 7 14 15 15 15 18 20 20 20 20 20 20 20 Most Carried 20 | 5 15 15 15 15 20 20 20 20 20 20 18 20 Average Carried 16 | 3 8 14 14 14 16 19 19 19 19 16 13 18 Final Capacity 20 | 8 15 15 15 15 20 20 20 20 20 20 20 20 Final Carried 20 | 5 15 15 15 15 20 20 20 20 20 12 18 17 Scrap Engine Consumption 42 | . . . . . . . . . . 18 16 8 Constructs Created 6 | . . . . . . . . . . 3 2 1 Constructs Modified 7 | . . . . . . . . . . . 3 4 Class Distribution -------------------- 40% | Hacker-Mutant 37% | Mutant 19% | Scavenger-Mutant Dominant Class ---------------- Mutant | -10/Materials Scavenger-Mutant | -10/Mines Scavenger-Mutant | -10/Exiles Mutant | -9/Mines Scavenger-Mutant | -8/Materials Scavenger-Mutant | -8/Garrison Hacker-Mutant | -8/Materials Mutant | -8/Garrison Mutant | -8/Materials Hacker-Mutant | -7/Factory Hacker-Mutant | -7/Garrison Hacker-Mutant | -7/Factory Resources | -11 -10 -10 -10 -9 -8 -8 -8 -8 -8 -7 -7 -7 ----------- Run | Scr Mat Min Exi Min Mat Gar Mat Gar Mat Fac Gar Fac Matter Collected 3336 | 304 323 152 . 195 583 346 252 369 415 194 130 73 Remotely . | . . . . . . . . . . . . . Salvage Created 7402 | 153 522 120 . 247 1378 862 1004 618 1006 570 767 155 Parts 416 | 13 38 8 . 16 76 40 69 32 60 14 39 11 Haulers Intercepted 10 | . 1 . . . 3 . 2 . 3 1 . . Recyclers Shooed 6 | . 1 1 . . . . 4 . . . . . Parts Field Recycled . | . . . . . . . . . . . . . Retrieved Matter . | . . . . . . . . . . . . . Parts Self-Destructed . | . . . . . . . . . . . . . Prevented . | . . . . . . . . . . . . . Kills | -11 -10 -10 -10 -9 -8 -8 -8 -8 -8 -7 -7 -7 ------- Run | Scr Mat Min Exi Min Mat Gar Mat Gar Mat Fac Gar Fac Combat Hostiles Destroyed 160 | . 10 3 . 8 24 23 18 24 16 9 21 4 Melee 38 | . . . . . 11 8 2 5 9 3 . . Guns 53 | . 6 3 . 4 5 7 12 3 4 5 4 . Cannons 24 | . 3 . . . . . . . . 1 17 3 AOE 45 | . 1 . . 4 8 8 4 16 3 . . 1 Classes Destroyed 16 | 3 4 . . 1 4 2 . . . . 2 . Worker 12 | 1 1 . . 1 4 . 4 . 1 . . . Builder 2 | . . . . . 1 . . . 1 . . . Tunneler 5 | 3 . . . . 1 . . . 1 . . . Hauler 10 | . 1 . . . 3 . 2 . 3 1 . . Recycler 8 | 1 1 1 . . 2 . 1 . 2 . . . Operator 4 | . . . . . 2 . 1 . 1 . . . Watcher 10 | . 2 . . . 3 . 3 . 2 . . . Swarmer 40 | . 3 3 . 4 7 6 6 8 3 . . . Cutter 1 | . . . . . . 1 . . . . . . Grunt 77 | . 7 . . 3 12 10 5 13 10 3 13 1 Brawler 5 | . . . . . . 1 . 1 . . 2 1 Duelist 3 | . . . . 1 . . 2 . . . . . Sentry 27 | . . . . . 4 4 4 3 3 6 3 . Specialist 2 | . . . . . . . . . . . 2 . Hunter 3 | . . . . . 1 1 1 . . . . . Programmer 3 | . . . . . . . . . . . 1 2 Thug 1 | . . . . 1 . . . . . . . . Best Kill Streak 7 | 5 2 3 . 4 7 4 7 7 7 4 5 2 Combat Bots Only 7 | . 2 3 . 4 7 4 5 7 4 4 5 2 Max Kills in Single Turn 4 | 1 1 1 . 4 2 3 2 4 2 1 1 1 Gunslinging . | . . . . . . . . . . . . . Exploded 4 | . 1 . . 4 2 3 2 4 1 . . 1 Melee 1 | . . . . . 1 1 1 1 1 1 . . Uniques/NPCs Destroyed . | . . . . . . . . . . . . . Combat | -11 -10 -10 -10 -9 -8 -8 -8 -8 -8 -7 -7 -7 -------- Run | Scr Mat Min Exi Min Mat Gar Mat Gar Mat Fac Gar Fac Damage Taken 7877 | . 484 71 . 198 590 1150 223 697 781 1778 1227 678 Core 1223 | . 74 24 . 15 152 106 21 66 61 405 144 155 Absorbed by Shields 336 | . . . . . . . . . 12 256 68 . Regen/Repaired (Parts) 1298 | . . . . . 104 . 150 . . . 587 457 Core Remaining (%) 60 | 100 . . . 54 . . . . 26 . . . Volleys Fired 343 | 23 65 5 . 13 51 20 6 19 24 43 29 45 Largest 3 | 2 2 2 . 2 2 2 1 1 3 3 1 1 Hottest 114 | 40 100 53 . 56 56 51 36 36 114 114 45 29 Shots Fired 645 | 46 118 10 . 24 90 55 50 30 44 57 76 45 Gun 485 | 46 100 9 . 22 82 47 48 13 34 55 29 . Cannon 110 | . 16 . . . . . . . . 2 47 45 Launcher 48 | . . 1 . 2 8 8 2 17 10 . . . Special 2 | . 2 . . . . . . . . . . . Kinetic 575 | 46 116 9 . 22 82 47 48 13 20 51 76 45 Thermal 22 | . 2 . . . . . . . 14 6 . . Explosive 48 | . . 1 . 2 8 8 2 17 10 . . . Electromagnetic . | . . . . . . . . . . . . . Robot Hit Streak 21 | 5 8 3 . 8 8 21 13 8 11 12 16 15 Robot Miss Streak 5 | 4 4 5 . 3 4 2 2 2 2 2 2 5 Penetration Max 1 | . . . . . . . . . 1 . 1 . Secondary Targets 1 | . . . . . 1 . . . . . . . Max Gunslinging Chain 1 | . . . . . 1 . . . . . . . Autonomous 133 | . . . . . . 29 44 11 . 2 47 . Shots Hit Robots 601 | 26 78 7 . 15 83 62 63 41 66 56 70 34 Core Hits 322 | 11 36 6 . 14 53 37 31 30 38 19 36 11 Critical Kills 3 | . 1 . . . 1 . 1 . . . . . Critical Parts Destroyed 5 | . . . . 2 . 1 1 . . . 1 . Critical Strikes 33 | . 1 . . 2 3 7 3 5 3 3 6 . Burn 2 | . . . . . . . . . . 2 . . Destroy 8 | . 1 . . 2 1 1 2 . . . 1 . Blast 5 | . . . . . . . . . . . 5 . Sever 18 | . . . . . 2 6 1 5 3 1 . . Melee Attacks 263 | . . . . . 56 63 37 46 49 12 . . Impact . | . . . . . . . . . . . . . Slashing 263 | . . . . . 56 63 37 46 49 12 . . Piercing . | . . . . . . . . . . . . . Sneak Attacks 33 | . . . . . 11 2 12 1 7 . . . Combat Hostiles 6 | . . . . . 3 1 . 1 1 . . . Follow-up Attacks . | . . . . . . . . . . . . . Damage Inflicted 20725 | 200 818 199 . 545 3015 2377 2499 2800 2488 1427 3698 659 Guns 6138 | 200 554 107 . 324 852 799 1019 316 441 1010 516 . Cannons 4009 | . 177 . . . . . . . . 74 3182 576 Explosions 4269 | . 77 92 . 221 556 559 302 1705 674 . . 83 Melee 6297 | . . . . . 1605 1019 1178 779 1373 343 . . Ramming 12 | . 10 . . . 2 . . . . . . . Kinetic 9835 | 200 731 107 . 324 852 799 1019 316 232 981 3698 576 Thermal 355 | . . . . . . . . . 252 103 . . Explosive 4149 | . . 92 . 221 556 559 302 1705 631 . . 83 Electromagnetic 77 | . 77 . . . . . . . . . . . Impact . | . . . . . . . . . . . . . Slashing 6297 | . . . . . 1605 1019 1178 779 1373 343 . . Piercing . | . . . . . . . . . . . . . Highest Corruption 5 | . . . . . . . . . . . . 5 Average Corruption 4 | . . . . . . . . . . . . 4 Corruption Purged . | . . . . . . . . . . . . . Corruption Blocked 4 | . . . . . . . . . . . . 4 Effects 4 | . . . . . . . . . . . . 4 Matter Fused 2 | . . . . . . . . . . . . 2 Energy Discharges 1 | . . . . . . . . . . . . 1 Parts Rejected 1 | . . . . . . . . . . . . 1 Overload Shots . | . . . . . . . . . . . . . Overflow Damage 762 | . 4 . . 20 52 34 135 123 150 . 244 . Projectiles 248 | . 4 . . . . . . . . . 244 . Explosions 186 | . . . . 20 . 15 28 123 . . . . Melee 328 | . . . . . 52 19 107 . 150 . . . Knockbacks 15 | . 5 . . . . . . . . . 5 5 Impact . | . . . . . . . . . . . . . Kinetic 13 | . 4 . . . . . . . . . 5 4 Secondary 2 | . 1 . . . . . . . . . . 1 Self-Inflicted Damage 134 | . . 21 . 47 . . . . . . . 66 Shots 4 | . . 1 . 2 . . . . . . . 1 Rammed 3 | . 2 . . . 1 . . . . . . . Targets Rammed 3 | . 2 . . . 1 . . . . . . . Kicked . | . . . . . . . . . . . . . Crushed . | . . . . . . . . . . . . . Highest Temperature 245 | . 72 . . 141 25 12 3 17 245 212 22 33 Average Temperature 45 | . 22 . . 57 9 7 2 6 97 76 8 6 Received Heat Transfer 2994 | . 207 . . 87 261 477 72 279 378 585 495 153 Effects 1 | . . . . . . . . . 1 . . . Energy Bleed 1 | . . . . . . . . . 1 . . . Siege Activations . | . . . . . . . . . . . . . Robots Corrupted . | . . . . . . . . . . . . . Combat Hostiles . | . . . . . . . . . . . . . Parts Fried . | . . . . . . . . . . . . . Impact Corruptions . | . . . . . . . . . . . . . Robots Melted . | . . . . . . . . . . . . . Combat Hostiles . | . . . . . . . . . . . . . Parts Melted . | . . . . . . . . . . . . . Heat Transferred 864 | . . . . . . . . . 494 370 . . Parts Sabotaged . | . . . . . . . . . . . . . Parts Stolen . | . . . . . . . . . . . . . Parts Stripped . | . . . . . . . . . . . . . Power Chain Reactions . | . . . . . . . . . . . . . Missiles Intercepted . | . . . . . . . . . . . . . Alert | -11 -10 -10 -10 -9 -8 -8 -8 -8 -8 -7 -7 -7 ------- Run | Scr Mat Min Exi Min Mat Gar Mat Gar Mat Fac Gar Fac Peak Influence 1058 | 25 152 70 . 240 342 1058 683 904 506 323 873 526 Initial 510 | . 16 28 . . 15 127 510 72 440 229 165 457 Average 319 | 5 46 40 . 141 155 708 259 669 264 237 574 394 Maximum Alert Level 3 | . . . . 1 1 3 2 3 2 1 3 2 Low Security (%) 44 | 100 100 100 . 54 79 9 48 9 34 17 5 . Level 1 24 | . . . . 46 20 17 19 10 40 82 23 52 Level 2 15 | . . . . . . 7 31 15 24 . 21 47 Level 3 16 | . . . . . . 65 . 63 . . 48 . Level 4 . | . . . . . . . . . . . . . Level 5 . | . . . . . . . . . . . . . High Security . | . . . . . . . . . . . . . Max Security . | . . . . . . . . . . . . . Squads Dispatched 16 | . 1 . . 1 2 . 3 . 3 4 . 2 Investigation 4 | . . . . . . . 2 . 1 1 . . Extermination 1 | . . . . . . . . . . . . 1 Reinforcement 5 | . 1 . . . 2 . 1 . 1 . . . Assault 2 | . . . . 1 . . . . 1 . . . Garrison 4 | . . . . . . . . . . 3 . 1 Intercept . | . . . . . . . . . . . . . Searches Triggered . | . . . . . . . . . . . . . Construction Impeded . | . . . . . . . . . . . . . Haulers Reinforced . | . . . . . . . . . . . . . Active Scanning Responses . | . . . . . . . . . . . . . Cargo Convoy Interrupts 1 | . . . . . . . . . . . . 1 Stealth | -11 -10 -10 -10 -9 -8 -8 -8 -8 -8 -7 -7 -7 --------- Run | Scr Mat Min Exi Min Mat Gar Mat Gar Mat Fac Gar Fac Distress Signals 13 | . 1 1 . . 4 . 4 . 3 . . . Communications Jammed . | . . . . . . . . . . . . . Distress Signals . | . . . . . . . . . . . . . Times Spotted 220 | . 18 9 . 9 42 23 20 21 33 10 27 8 Peak Tracking Total 7 | . 3 5 . 5 7 3 4 4 6 5 4 3 Tactical Retreats 21 | . 1 . . . 2 . 3 1 5 . 7 2 Traps | -11 -10 -10 -10 -9 -8 -8 -8 -8 -8 -7 -7 -7 ------- Run | Scr Mat Min Exi Min Mat Gar Mat Gar Mat Fac Gar Fac Traps Triggered 16 | . . . . . . 3 1 2 2 . 7 1 Indirectly . | . . . . . . . . . . . . . Trap Hack Attempts . | . . . . . . . . . . . . . Triggered . | . . . . . . . . . . . . . Disarmed . | . . . . . . . . . . . . . Reprogrammed . | . . . . . . . . . . . . . Reused . | . . . . . . . . . . . . . Traps Extracted . | . . . . . . . . . . . . . Installed . | . . . . . . . . . . . . . Triggered 1 | . . . . . . . . . . . . 1 Machines | -11 -10 -10 -10 -9 -8 -8 -8 -8 -8 -7 -7 -7 ---------- Run | Scr Mat Min Exi Min Mat Gar Mat Gar Mat Fac Gar Fac Machines Disabled 19 | . 3 . . . 2 1 . 5 5 1 1 1 Max in Single Turn 2 | . 2 . . . 1 1 . 2 2 1 1 1 Machines Sabotaged . | . . . . . . . . . . . . . Overloaded Fab Kills . | . . . . . . . . . . . . . Hacking | -11 -10 -10 -10 -9 -8 -8 -8 -8 -8 -7 -7 -7 --------- Run | Scr Mat Min Exi Min Mat Gar Mat Gar Mat Fac Gar Fac Machines Accessed 56 | . 7 . 2 . 9 2 14 2 9 3 1 7 Terminals 41 | . 7 . . . 6 2 9 2 9 1 1 4 Fabricators 3 | . . . . . . . . . . 1 . 2 Repair Stations 5 | . . . . . 2 . 2 . . . . 1 Recycling Units 1 | . . . . . . . 1 . . . . . Scanalyzers 1 | . . . . . . . 1 . . . . . Garrison Access 3 | . . . . . 1 . 1 . . 1 . . Total Hacks 168 | . 23 . 2 . 29 6 44 3 28 7 2 24 Successful 111 | . 16 . 2 . 19 2 31 2 16 5 1 17 Failed 53 | . 6 . . . 9 4 13 1 11 1 1 7 Catastrophic 6 | . . . . . 1 . 2 . 3 . . . Database Lockouts 4 | . 1 . . . 1 . . . 1 1 . . Manual 88 | . 14 . 1 . 17 . 28 . 19 2 . 7 Terminals 137 | . 23 . . . 24 6 33 3 28 3 2 15 Fabricators 8 | . . . . . . . . . . 3 . 5 Repair Stations 15 | . . . . . 4 . 7 . . . . 4 Recycling Units 1 | . . . . . . . 1 . . . . . Scanalyzers 2 | . . . . . . . 2 . . . . . Garrison Access 3 | . . . . . 1 . 1 . . 1 . . Terminal Hacks 62 | . 10 . 2 . 9 2 16 2 11 2 1 7 Record 1 | . . . 1 . . . . . . . . . Part Schematic 1 | . . . . . . . . . . 1 . . Robot Analysis 8 | . 3 . . . 1 . 2 . . . . 2 Prototype ID Bank 11 | . 4 . . . . . 3 . 4 . . . Open Door 1 | . . . . . . 1 . . . . . . Open DSF 1 | . . . . . . . . . . . . 1 Branch Access Points 2 | . . . . . 1 . . . . . . 1 Emergency Access Points 3 | . . . . . . 1 . 1 . . 1 . Machine Index 1 | . . . . . . . . . . . . 1 Terminal Index 4 | . 1 . . . 1 . 1 . 1 . . . Garrison Index 1 | . . . . . . . . . 1 . . . Alert Level 9 | . . . . . 2 . 4 . 1 1 . 1 Unreport Threat 6 | . . . . . 1 . 4 . 1 . . . Locate Traps 3 | . . . . . 1 . 1 . 1 . . . Transport Status 1 | . . . . . . . . . 1 . . . Hauler Manifests 3 | . 1 . . . 1 . . . 1 . . . Registered Prototypes 1 | . . . . . . . . . . . . 1 Zone Layout 3 | . 1 . . . 1 . 1 . . . . . Garrison Registry 1 | . . . . . . . . 1 . . . . EX-Prototype ID Bank 1 | . . . 1 . . . . . . . . . Fabricator Hacks 6 | . . . . . . . . . . 2 . 4 Load Schematic 3 | . . . . . . . . . . 1 . 2 Build 3 | . . . . . . . . . . 1 . 2 Repair Station Hacks 14 | . . . . . 4 . 6 . . . . 4 Scan Component 7 | . . . . . 2 . 3 . . . . 2 Repair 7 | . . . . . 2 . 3 . . . . 2 Recycling Unit Hacks . | . . . . . . . . . . . . . Scanalyzer 2 | . . . . . . . 2 . . . . . Insert Component 1 | . . . . . . . 1 . . . . . Analyze 1 | . . . . . . . 1 . . . . . Garrison Access Hacks 3 | . . . . . 1 . 1 . . 1 . . Unlock Access 3 | . . . . . 1 . 1 . . 1 . . Unauthorized Hacks 24 | . 6 . . . 5 . 6 . 5 . . 2 Terminals 23 | . 6 . . . 5 . 5 . 5 . . 2 Track 6 | . 2 . . . 1 . 1 . 2 . . . Assimilate 3 | . 1 . . . 1 . 1 . . . . . Botnet 10 | . 2 . . . 2 . 2 . 2 . . 2 Disrupt 1 | . . . . . . . . . 1 . . . Operators 3 | . 1 . . . 1 . 1 . . . . . Fabricators . | . . . . . . . . . . . . . Repair Stations . | . . . . . . . . . . . . . Recycling Units 1 | . . . . . . . 1 . . . . . Tunnel 1 | . . . . . . . 1 . . . . . Scanalyzers . | . . . . . . . . . . . . . Garrison Access . | . . . . . . . . . . . . . Data Cores Recovered . | . . . . . . . . . . . . . Used . | . . . . . . . . . . . . . Hacking Detections 34 | . 6 . . . 3 1 7 . 8 3 1 5 Full Trace Events 2 | . . . . . . . 1 . . 1 . . Feedback Events . | . . . . . . . . . . . . . Feedback Blocked . | . . . . . . . . . . . . . Robot Schematics Acquired . | . . . . . . . . . . . . . Robots Built . | . . . . . . . . . . . . . Authchips . | . . . . . . . . . . . . . Time . | . . . . . . . . . . . . . Total Robot Build Rating . | . . . . . . . . . . . . . Part Schematics Acquired 2 | . . . . . . . 1 . . 1 . . Parts Built 3 | . . . . . . . . . . 1 . 2 Authchips 2 | . . . . . . . . . . . . 2 Time 232 | . . . . . . . . . . 58 . 174 Total Part Build Rating 9 | . . . . . . . . . . 3 . 6 Parts Repaired 6 | . . . . . 2 . 2 . . . . 2 Time 248 | . . . . . 64 . 114 . . . . 70 Parts Recycled . | . . . . . . . . . . . . . Recycled Matter . | . . . . . . . . . . . . . Retrieved Matter . | . . . . . . . . . . . . . Retrieved Components . | . . . . . . . . . . . . . Parts Scanalyzed 1 | . . . . . . . 1 . . . . . Part Schematics Acquired 1 | . . . . . . . 1 . . . . . Parts Damaged . | . . . . . . . . . . . . . Bothacking | -11 -10 -10 -10 -9 -8 -8 -8 -8 -8 -7 -7 -7 ------------ Run | Scr Mat Min Exi Min Mat Gar Mat Gar Mat Fac Gar Fac Used RIF Installer . | . . . . . . . . . . . . . Robots Hacked . | . . . . . . . . . . . . . Non-combat . | . . . . . . . . . . . . . Combat . | . . . . . . . . . . . . . Robot Hacks Applied . | . . . . . . . . . . . . . Relay Couplers Released . | . . . . . . . . . . . . . Fabnet Peak Effective % . | . . . . . . . . . . . . . Robots Rewired 7 | . . . . . . 4 . 3 . . . . Allies Hacked . | . . . . . . . . . . . . . Hacks Repelled . | . . . . . . . . . . . . . Allies | -11 -10 -10 -10 -9 -8 -8 -8 -8 -8 -7 -7 -7 -------- Run | Scr Mat Min Exi Min Mat Gar Mat Gar Mat Fac Gar Fac Total Allies 13 | . 1 . . 3 1 5 . 3 . . . . Largest Group 5 | . 1 1 1 3 3 5 . 3 . . . . Highest-Rated Group 94 | . 10 10 10 53 53 94 . 48 . . . . Highest-Rated Ally 31 | . 10 10 10 31 31 21 . 16 . . . . Total Orders 37 | . 12 6 . 4 6 9 . . . . . . STAY 18 | . 6 3 . 2 3 4 . . . . . . FOLLOW 19 | . 6 3 . 2 3 5 . . . . . . Ally Attacks 50 | . . . . 5 4 41 . . . . . . Total Damage 1315 | . . . . 62 64 1189 . . . . . . Kills 11 | . . . . . . 11 . . . . . . Allies Corrupted . | . . . . . . . . . . . . . Allies Melted . | . . . . . . . . . . . . . Intel | -11 -10 -10 -10 -9 -8 -8 -8 -8 -8 -7 -7 -7 ------- Run | Scr Mat Min Exi Min Mat Gar Mat Gar Mat Fac Gar Fac Robot Analysis Total 8 | . 3 . . . 1 . 2 . . . . 2 Derelict Logs Recovered 2 | . . 1 . 1 . . . . . . . . Drone Launches . | . . . . . . . . . . . . . Drone Recoveries . | . . . . . . . . . . . . . Exploration | -11 -10 -10 -10 -9 -8 -8 -8 -8 -8 -7 -7 -7 ------------- Run | Scr Mat Min Exi Min Mat Gar Mat Gar Mat Fac Gar Fac Turns Passed 17262 | 146 1686 1038 423 450 2268 1693 2557 1504 2500 726 1320 951 Spaces Moved 8858 | 81 1036 675 332 237 1341 1232 1127 687 741 331 564 474 Core 11 | 6 . . . . . . . . . 5 . . Treads 2744 | . 473 . 104 237 76 . . 267 741 122 250 474 Legs . | . . . . . . . . . . . . . Wheels 6103 | 75 563 675 228 . 1265 1232 1127 420 . 204 314 . Hover . | . . . . . . . . . . . . . Flight . | . . . . . . . . . . . . . Fastest Speed 50 | 50 90 100 105 160 96 98 98 98 150 110 110 160 Average Speed 129 | 87 125 104 122 160 107 106 103 153 194 153 161 160 Slowest Speed 750 | 100 160 105 160 160 160 115 125 235 237 750 320 160 Overloaded Moves . | . . . . . . . . . . . . . Propulsion Burnouts . | . . . . . . . . . . . . . Robots Hopped . | . . . . . . . . . . . . . Cave-ins Triggered . | . . . . . . . . . . . . . Exploration Rate (%) 57 | 6 96 98 69 57 72 92 82 67 52 7 40 13 Regions Visited 12 Branch Regions 3 Pre-discovered Areas 2 | . . . 1 . . . 1 . . . . . Known Exits Taken 3 | . . . . . 1 . 1 . . 1 . . Unknown Exits Taken 6 | 1 1 1 1 1 . . . . 1 . . . Scrap Searched 4 | . . 2 . 2 . . . . . . . . Spaces Dug 51 | . 2 . . 12 8 13 10 1 5 . . . Terrain Destroyed 432 | . 2 4 . 28 91 49 63 59 87 1 9 39 Melee 22 | . . . . . 7 . 10 . 5 . . . Projectile 62 | . 2 . . 3 5 6 33 2 . 1 9 1 AOE 348 | . . 4 . 25 79 43 20 57 82 . . 38 Terrain Rammed . | . . . . . . . . . . . . . Walls Destroyed . | . . . . . . . . . . . . . Machines Disabled . | . . . . . . . . . . . . . Actions | -11 -10 -10 -10 -9 -8 -8 -8 -8 -8 -7 -7 -7 --------- Run | Scr Mat Min Exi Min Mat Gar Mat Gar Mat Fac Gar Fac Total 13810 | 115 1309 1002 353 287 1998 1496 2451 1044 1690 484 948 633 Wait 3907 | . 168 305 3 22 491 95 1242 259 837 82 301 102 Move 8845 | 80 1035 674 331 236 1341 1229 1127 684 740 331 563 474 Hop . | . . . . . . . . . . . . . Pick Up 80 | 5 11 5 3 3 17 6 7 2 7 . 9 5 Fast Attach 50 | 7 1 1 . 2 11 1 8 2 8 4 4 1 Attach 29 | . 2 . 1 1 2 5 2 5 2 3 4 2 Detach 9 | . 1 . . . 4 . . 2 . 1 1 . Swap 80 | . 20 2 4 3 8 10 11 7 11 1 1 2 Drop 89 | . 4 7 11 7 16 8 11 2 12 7 2 2 Fire 343 | 23 65 5 . 13 51 20 6 19 24 43 29 45 Melee 263 | . . . . . 56 63 37 46 49 12 . . Ram . | . . . . . . . . . . . . . Kick . | . . . . . . . . . . . . . Crush 3 | . 2 . . . 1 . . . . . . . Escape Stasis 58 | . . . . . . 24 . . . . 34 . Rewire 54 | . . 3 . . . 35 . 16 . . . . Trap . | . . . . . . . . . . . . . Miscellaneous . | . . . . . . . . . . . . . Route ------- -11/Scrapyard -10/Materials (discovered 4 exits: [*Mat x3] / [*Min]) -10/Mines (discovered 3 exits: [*Mat x2] / *Exi) -10/Exiles -9/Mines -8/Materials (discovered 3 exits: *Fac x2 / Gar) -8/Garrison (discovered 3 exits: *Mat x3) -8/Materials (discovered 2 exits: *Fac / Gar) -8/Garrison (discovered 4 exits: *Fac x3 / *Mat) -8/Materials -7/Factory -7/Garrison -7/Factory (discovered 3 exits: Sto / *Low x2) History --------- Turn | Location | Event 4 | -11/Scrapyard | Discovered new exit (range 16) 147 | -11/Scrapyard | Entered Materials 256 | -10/Materials | Discovered new exit (range 15) 318 | -10/Materials | Build established: Mutant 537 | -10/Materials | Central database locked down 679 | -10/Materials | Discovered new exit (range 3) 1439 | -10/Materials | Discovered new exit (range 11) 1634 | -10/Materials | Discovered new exit (range 4) 1833 | -10/Materials | Entered Mines 1833 | -10/Mines | Accompanied by 1 ally 1843 | -10/Mines | Joined a pair of Derelicts in attacking an 0b10 outpost 1918 | -10/Mines | Discovered new exit (range 7) 1931 | -10/Mines | Assembled infested the area 2317 | -10/Mines | Discovered new exit (range 8) 2506 | -10/Mines | Learned Materials emergency access door positions 2566 | -10/Mines | Build established: Scavenger-Mutant 2655 | -10/Mines | Received a Rocket Launcher from a helpful Derelict 2688 | -10/Mines | Discovered new exit (range 5) 2871 | -10/Mines | Entered Exiles 2871 | -10/Exiles | Accompanied by 1 ally 2897 | -10/Exiles | Met 8R-AWN 2915 | -10/Exiles | Met EX-HEX 2966 | -10/Exiles | Met EX-DEC 2985 | -10/Exiles | Learned location of Zion (-7) 3065 | -10/Exiles | Met EX-BIN 3080 | -10/Exiles | Aligned with FarCom system 3081 | -10/Exiles | Given EX-Vault access code 3106 | -10/Exiles | Opened EX-Vault 3129 | -10/Exiles | Found AWS/Gauss 3133 | -10/Exiles | Found Army-in-a-Box 3137 | -10/Exiles | Found AWS/Autocannon 3171 | -10/Exiles | Warned to stay clear of 0b10 Research branches 3274 | -10/Exiles | Discovered new exit (range 12) 3294 | -10/Exiles | Stole three prototypes: Army-in-a-Box, AWS/Gauss, AWS/Autocannon 3294 | -10/Exiles | Entered Mines 3294 | -9/Mines | Accompanied by 1 ally 3299 | -9/Mines | Met a Derelict testing a Signal Generator 3335 | -9/Mines | A weapon hastily lodged in a ceiling crevice suddenly fell to the ground 3401 | -9/Mines | Build established: Mutant 3482 | -9/Mines | Learned Materials stockpile data 3730 | -9/Mines | Discovered new exit (range 5) 3744 | -9/Mines | Entered Materials 3744 | -8/Materials | Accompanied by 3 allies 3744 | -8/Materials | Evolved 4 slots: Propulsion x1, Utility x2, Weapon x1 3749 | -8/Materials | Led the pair of lost Derelicts to an unsafe place 4322 | -8/Materials | Build established: Scavenger-Mutant 4354 | -8/Materials | Discovered new exit (range 16) 4354 | -8/Materials | Central database locked down 4843 | -8/Materials | Destroyed 7 combat bots 5268 | -8/Materials | Repaired Arm. Wheel 5330 | -8/Materials | Discovered new exit (range 12) 5623 | -8/Materials | Build established: Hacker-Mutant 5990 | -8/Materials | Repaired Autogun 6012 | -8/Materials | Identified exit to Garrison 6012 | -8/Materials | Entered Garrison 6012 | -8/Garrison | Accompanied by 1 ally 6091 | -8/Garrison | Rescued a captive Derelict 6156 | -8/Garrison | Triggered checkpoint 6182 | -8/Garrison | Build established: Scavenger-Mutant 6244 | -8/Garrison | Triggered checkpoint 6282 | -8/Garrison | Triggered checkpoint 6436 | -8/Garrison | Triggered checkpoint 6464 | -8/Garrison | Triggered checkpoint 6466 | -8/Garrison | Triggered checkpoint 6587 | -8/Garrison | Triggered checkpoint 6685 | -8/Garrison | Triggered checkpoint 6778 | -8/Garrison | Triggered checkpoint 6781 | -8/Garrison | Discovered new exit (range 10) 7040 | -8/Garrison | Triggered checkpoint 7108 | -8/Garrison | Lost 5 parts (1p1n1u2w) 7255 | -8/Garrison | Discovered new exit (range 15) 7377 | -8/Garrison | Build established: Hacker-Mutant 7432 | -8/Garrison | Attempted to access garrison exit controls, blocked by remote lockdown 7579 | -8/Garrison | Spotted B-75 Beast 7594 | -8/Garrison | Attempted to access garrison exit controls, blocked by remote lockdown 7682 | -8/Garrison | Discovered new exit (range 8) 7705 | -8/Garrison | Entered Materials 8016 | -8/Materials | Repaired Arm. Wheel 8056 | -8/Materials | Repaired Missile Launcher 8577 | -8/Materials | Discovered new exit (range 3) 9190 | -8/Materials | Core integrity fell below 50% 10262 | -8/Materials | Identified exit to Garrison 10262 | -8/Materials | Entered Garrison 10320 | -8/Garrison | Triggered checkpoint 10342 | -8/Garrison | Discovered new exit (range 5) 10415 | -8/Garrison | Triggered checkpoint 10456 | -8/Garrison | Triggered checkpoint 10566 | -8/Garrison | Triggered checkpoint 10611 | -8/Garrison | Triggered checkpoint 10640 | -8/Garrison | Destroyed 7 combat bots 10685 | -8/Garrison | Discovered new exit (range 14) 10886 | -8/Garrison | Lost 4 parts (1p2n1u) 11203 | -8/Garrison | Build established: Mutant 11226 | -8/Garrison | Discovered new exit (range 13) 11243 | -8/Garrison | Discovered new exit (range 49) 11243 | -8/Garrison | Discovered new exit (range 13) 11243 | -8/Garrison | Discovered new exit (range 74) 11243 | -8/Garrison | Discovered new exit (range 74) 11496 | -8/Garrison | Attempted to access garrison exit controls, blocked by remote lockdown 11766 | -8/Garrison | Entered Materials 13508 | -8/Materials | Discovered new exit (range 16) 13946 | -8/Materials | Central database locked down 14166 | -8/Materials | First assault squad dispatched 14266 | -8/Materials | Entered Factory 14266 | -7/Factory | Evolved 2 slots: Utility x2 14268 | -7/Factory | FarCom data flow suspended 14270 | -7/Factory | Found Scrap Engine 14430 | -7/Factory | Garrison activated, responded to threat 14473 | -7/Factory | Fabricated Enh. Autogun? 14546 | -7/Factory | Lost 7 parts (1p2n1u3w) 14687 | -7/Factory | Central database locked down 14799 | -7/Factory | Core integrity fell below 50% 14820 | -7/Factory | Lost 4 parts (1p1n2u) 14992 | -7/Factory | Identified exit to Garrison 14992 | -7/Factory | Entered Garrison 15242 | -7/Garrison | Spotted B-75 Beast 15272 | -7/Garrison | Spotted B-75 Beast 15324 | -7/Garrison | Triggered checkpoint 15583 | -7/Garrison | Triggered checkpoint 15632 | -7/Garrison | Triggered checkpoint 15710 | -7/Garrison | Discovered new exit (range 12) 15790 | -7/Garrison | Lost 3 parts (3n) 15892 | -7/Garrison | Triggered checkpoint 15944 | -7/Garrison | Build established: Hacker-Mutant 16312 | -7/Garrison | Entered Factory 16609 | -7/Factory | Identified exit to Storage 16609 | -7/Factory | Identified exit to Lower Caves 16841 | -7/Factory | Repaired Imp. Medium Armor Plating 16868 | -7/Factory | Repaired Lgt. Treads 16982 | -7/Factory | Fabricated Enh. Autogun? 17046 | -7/Factory | Fabricated Enh. Autogun? 17097 | -7/Factory | Core integrity fell below 20% 17194 | -7/Factory | Cargo convoy interrupted 17236 | -7/Factory | Garrison activated, responded to threat 17263 | -7/Factory | Destroyed by G-47 Trooper with Particle Gun Last Messages --------------- 17178_ System corrupted by crushing effect (+4). 17179_ System corrupted: Energy discharge (-59). 17184_ Arm. Scrap Engine reinforces its armored shell (+31). 17188_ B-48 Gladiator destroyed. 17194_ ALERT: Cargo convoy interrupted, initiating access lockdown. 17198_ P-60 Hacker knocked back. 17201_ Nuclear Reactor explodes. 17201_ P-60 Hacker destroyed. 17204_ Acquired 28 matter. 17207_ System corrupted: Matter fused (-6). 17212_ Acquired 8 matter. 17213_ The unstable cave ceiling collapses. 17228_ U-05 Engineer lays Concrete. 17234_ U-05 Engineer builds a Wall. 17236_ ALERT: Activating Garrison Access F001. 17244_ System corrupted: Matter fused (-8). 17251_ Lgt. Treads destroyed. 17255_ Critical hit (Burn: +37). 17263_ System corrupted: Imp. Medium Armor Plating rejected. 17263_ Critical hit (Burn: +37). Map ----- +----------------------------------------------------+ | ? # #?????????# #?# ## + | | ! # #?????????# #?######### # "T" | | ########### ###########+##????????# # | | ??????????# # #??####### ###### | | ??????????# # #??# #????? | | ??????????# # #??# ######+#######? | | ??######### # #### # !#? | | # + + #? | | # #### ## """" """" #? | | + #??# ## """" """" !#? | | # #??# ## """" """" #? | | ? # #??# ## """" """" #? | | ?########## # #??# ## #? | | ??????????# # #??# ## """" """" ## | | ??????????# # #??# #???""" """" ## | | ????????? + ##############??# ##???"" """" ## | | ????????" # #???????????????# + """" """" ## | | ??????? # #???????????????# ## ## | | ??????###?# ###########?????# #??#########+##? | | ??????????# # #????## ##?????????# #?# | | ??????????# # ![ ###### ########### ### | | ????# " " # # [[ ## # # | | ????# " " / %+ ## ############### | | ????# " " # !# """ ## #/ # #??????????# | | ??????????#" # "T ## #??????????? | | ??????????#%" # """ @## =! ##??????????? | | ??????????#" # !g #??????????? | | ??????????# ############ #??????????? | | ??????????# #??????????# ##??????????? | | ??????????# #??????????# # #???????????? | | ??????????# #??????????#### ####???????????? | | ??????????# ??????????????######?????????????? | | ??????????# ?????????????????????????????????? | | ?????????? ?????????????????????????????????? | | ?????????? ?????????????????????????????????? | | ????????? ?????????????????????????????????? | | ??????????? ?????????????????????????????????? | | ????????????? ?????????????????????????????????? | | ?????????????????????????????????????????????????? | | ?????????????????????????????????????????????????? | | ?????????????????????????????????????????????????? | | ?????????????????????????????????????????????????? | | ?????????????????????????????????????????????????? | | ?????????????????????????????????????????????????? | | ?????????????????????????????????????????????????? | | ?????????????????????????????????????????????????? | | ?????????????????????????????????????????????????? | | ?????????????????????????????????????????????????? | | ?????????????????????????????????????????????????? | | ?????????????????????????????????????????????????? | +----------------------------------------------------+ Best States ------------- Heat Dissipation 41 Energy Generation 16 Energy Capacity 290 Matter Stores 300 Matter Capacity 300 Sight Range 16 Terrain Scan Density 10 Armor Coverage 600 Resistance: TH 10 Resistance: EM 15 Evasion (%) 42 Recoil Reduction 3 Offensive Hacking 20 Defensive Hacking 10 Authchip Count 3 Item Schematics ----------------- Enh. Autogun | -8/Materials | Scanalyzed Adv. Treads | -7/Factory | Hacked Robot Schematics ------------------ None Fabricated ------------ Enh. Autogun | x1 | -7/Factory Enh. Autogun | x1 | -7/Factory | Authchip Enh. Autogun | x1 | -7/Factory | Authchip Alien Tech Used ----------------- None Achievements -------------- None Challenges ------------ None Game ------ Seed CoilSupersonicCanceller Manual? 0 Play Time 02:35:39 Cumulative 631.0 hours Start 2022.12.20 @ 09:32:10 End 2022.12.20 @ 14:08:54 Sessions 5 Manual Loads 0 Difficulty Rogue Special Mode None Game No. 204 Rogue 200 Adventurer 4 Explorer 0 Win Type - Total 18 Types 8/2/6/0/0/0/1/1/0 Lore% 86 Gallery% 89 Achievement% 77 Wizard Run 0 Options --------- ASCII 1 Keyboard 0 Movement Arrows Keybinds 0 Fullscreen 1 Font 18/SmallcapsGlow Map View 76x50 Tactical HUD 1 Map Filters NONE Filters NONE Steam 1 RUN: 01b5ff84-fb2e-40f2-a504-c3294c06b45a